[Event "*** Titled Tuesday Blitz"]
[Site "Chess.com"]
[Date "2021.03.02"]
[Round "5"]
[White "davigator"]
[Black "Majesth"]
[Result "0-1"]
[WhiteElo "2393"]
[BlackElo "2572"]
[TimeControl "180+1"]
[EndTime "10:53:03 PST"]
[Termination "Majesth won by resignation"]

1. e4 {[%clk 0:03:00.9]} 1... g6 {[%clk 0:03:00.2]} 2. d4 {[%clk 0:02:59.9]}
2... Bg7 {[%clk 0:03:00.7]} 3. Nc3 {[%clk 0:02:59.2]} 3... d6 {[%clk 0:03:01.2]}
4. Be3 {[%clk 0:02:59.1]} 4... a6 {[%clk 0:03:01.4]} 5. Qd2 {[%clk 0:02:59]}
5... Nd7 {[%clk 0:03:01.6]} 6. O-O-O {[%clk 0:02:58.7]} 6... b5 {[%clk
0:03:01.6]} 7. f3 {[%clk 0:02:58.5]} 7... Bb7 {[%clk 0:03:01]} 8. Kb1 {[%clk
0:02:57.7]} 8... Rc8 {[%clk 0:02:56]} 9. Nce2 {[%clk 0:02:53.1]} 9... c5 {[%clk
0:02:54.9]} 10. Nc1 {[%clk 0:02:51.2]} 10... cxd4 {[%clk 0:02:53.5]} 11. Bxd4
{[%clk 0:02:50.7]} 11... Ngf6 {[%clk 0:02:53.8]} 12. Be3 {[%clk 0:02:51]} 12...
Qc7 {[%clk 0:02:45.6]} 13. Bd3 {[%clk 0:02:50]} 13... Ne5 {[%clk 0:02:42.5]} 14.
Bh6 {[%clk 0:02:48.3]} 14... Bxh6 {[%clk 0:02:39.5]} 15. Qxh6 {[%clk 0:02:42.9]}
15... Nxd3 {[%clk 0:02:39.4]} 16. Rd2 {[%clk 0:02:26]} 16... Nxc1 {[%clk
0:02:33.5]} 17. Kxc1 {[%clk 0:02:25.9]} 17... Qc4 {[%clk 0:02:22.9]} 18. b3
{[%clk 0:02:25.8]} 18... Qf1+ {[%clk 0:02:21.2]} 19. Kb2 {[%clk 0:02:25.9]}
19... Rc5 {[%clk 0:02:11.6]} 20. g4 {[%clk 0:02:22.8]} 20... Nxe4 {[%clk
0:01:32.8]} 21. fxe4 {[%clk 0:02:17.5]} 21... Bxe4 {[%clk 0:01:33.7]} 22. Nf3
{[%clk 0:02:06.2]} 22... Qxh1 {[%clk 0:01:27.9]} 23. Ng5 {[%clk 0:02:06.8]}
23... Rxg5 {[%clk 0:01:12.9]} 24. Qxg5 {[%clk 0:02:06]} 24... O-O {[%clk
0:01:11.9]} 25. Qxe7 {[%clk 0:02:05.9]} 25... d5 {[%clk 0:01:09.3]} 26. g5
{[%clk 0:02:03]} 26... Qg1 {[%clk 0:01:05]} 27. Qf6 {[%clk 0:02:01.4]} 27... Qg4
{[%clk 0:01:01.3]} 28. Rf2 {[%clk 0:02:00.4]} 28... Qe6 {[%clk 0:00:59.6]} 29.
Qd4 {[%clk 0:02:00.2]} 29... Re8 {[%clk 0:00:59.5]} 30. c3 {[%clk 0:01:58.3]}
30... Qe5 {[%clk 0:00:57.9]} 31. Qd2 {[%clk 0:01:58.3]} 31... b4 {[%clk
0:00:57]} 32. a3 {[%clk 0:01:57.3]} 32... bxc3+ {[%clk 0:00:55.6]} 33. Qxc3
{[%clk 0:01:56.4]} 33... Qxg5 {[%clk 0:00:52.2]} 34. a4 {[%clk 0:01:55]} 34...
Qe5 {[%clk 0:00:47.6]} 35. Re2 {[%clk 0:01:52.7]} 35... d4 {[%clk 0:00:43.4]}
0-1

[Event "*** Titled Tuesday Blitz"]
[Site "Chess.com"]
[Date "2021.03.02"]
[Round "5"]
[White "catzapto"]
[Black "Kopytkin"]
[Result "1-0"]
[WhiteElo "2079"]
[BlackElo "2347"]
[TimeControl "180+1"]
[EndTime "10:53:16 PST"]
[Termination "catzapto won by resignation"]

1. e4 {[%clk 0:03:00]} 1... Nf6 {[%clk 0:02:59.3]} 2. Nc3 {[%clk 0:02:59.1]}
2... d5 {[%clk 0:02:59]} 3. exd5 {[%clk 0:03:00]} 3... a6 {[%clk 0:02:58.2]} 4.
d4 {[%clk 0:02:55.8]} 4... b5 {[%clk 0:02:58.2]} 5. Bg5 {[%clk 0:02:36.9]} 5...
Bb7 {[%clk 0:02:56.5]} 6. Nf3 {[%clk 0:02:33.4]} 6... Nxd5 {[%clk 0:02:55.2]} 7.
Nxd5 {[%clk 0:02:31.6]} 7... Bxd5 {[%clk 0:02:56.1]} 8. c3 {[%clk 0:02:29.8]}
8... h6 {[%clk 0:02:55.4]} 9. Bh4 {[%clk 0:02:29.6]} 9... Nc6 {[%clk 0:02:54.5]}
10. Bd3 {[%clk 0:02:29.6]} 10... g5 {[%clk 0:02:49.1]} 11. Bg3 {[%clk
0:02:29.2]} 11... Bg7 {[%clk 0:02:50]} 12. O-O {[%clk 0:02:28.7]} 12... O-O
{[%clk 0:02:49.5]} 13. Re1 {[%clk 0:02:28.7]} 13... f6 {[%clk 0:02:47]} 14. Bc2
{[%clk 0:02:25.2]} 14... Qd7 {[%clk 0:02:18.6]} 15. h4 {[%clk 0:02:24.7]} 15...
Rae8 {[%clk 0:02:14.7]} 16. Qd3 {[%clk 0:02:21.2]} 16... f5 {[%clk 0:02:04.7]}
17. hxg5 {[%clk 0:02:21.1]} 17... Bxf3 {[%clk 0:01:58.8]} 18. gxh6 {[%clk
0:02:04.2]} 18... Be4 {[%clk 0:01:58.1]} 19. Rxe4 {[%clk 0:02:04.2]} 19... fxe4
{[%clk 0:01:52.8]} 20. Qxe4 {[%clk 0:02:04.2]} 20... Rf5 {[%clk 0:01:43.5]} 21.
hxg7 {[%clk 0:01:44.3]} 21... e6 {[%clk 0:01:42.7]} 22. Qh4 {[%clk 0:01:32.9]}
22... Qxg7 {[%clk 0:01:40]} 23. Bxf5 {[%clk 0:01:29.1]} 23... exf5 {[%clk
0:01:40.9]} 24. Kf1 {[%clk 0:01:14.3]} 24... Qf7 {[%clk 0:01:38.1]} 25. Qg5+
{[%clk 0:01:11.6]} 25... Kf8 {[%clk 0:01:15.3]} 26. Qh6+ {[%clk 0:01:10.9]}
26... Kg8 {[%clk 0:01:01.3]} 27. Qxc6 {[%clk 0:01:10.8]} 27... Re6 {[%clk
0:00:59.1]} 28. Qxc7 {[%clk 0:01:09.6]} 1-0

[Event "*** Titled Tuesday Blitz"]
[Site "Chess.com"]
[Date "2021.03.02"]
[Round "5"]
[White "Shahaliyev"]
[Black "Problematique_99"]
[Result "0-1"]
[WhiteElo "2696"]
[BlackElo "2452"]
[TimeControl "180+1"]
[EndTime "10:53:18 PST"]
[Termination "Problematique_99 won by resignation"]

1. Nf3 {[%clk 0:03:00.9]} 1... d5 {[%clk 0:02:58.3]} 2. c4 {[%clk 0:03:00.9]}
2... e6 {[%clk 0:02:57.7]} 3. cxd5 {[%clk 0:03:01.3]} 3... exd5 {[%clk
0:02:57.6]} 4. b3 {[%clk 0:03:02.2]} 4... Nf6 {[%clk 0:02:57.2]} 5. Bb2 {[%clk
0:03:02.8]} 5... Be7 {[%clk 0:02:56.8]} 6. e3 {[%clk 0:03:03.4]} 6... O-O {[%clk
0:02:56.6]} 7. Nc3 {[%clk 0:03:04.1]} 7... c6 {[%clk 0:02:49.9]} 8. Be2 {[%clk
0:03:00]} 8... Bg4 {[%clk 0:02:49.3]} 9. h3 {[%clk 0:02:59.8]} 9... Bh5 {[%clk
0:02:48.8]} 10. O-O {[%clk 0:02:57.9]} 10... Nbd7 {[%clk 0:02:48.7]} 11. d3
{[%clk 0:02:54.6]} 11... Re8 {[%clk 0:02:39.8]} 12. Qd2 {[%clk 0:02:41.6]} 12...
Bd6 {[%clk 0:02:37.3]} 13. Rfe1 {[%clk 0:02:22.4]} 13... h6 {[%clk 0:02:23.5]}
14. e4 {[%clk 0:02:14.9]} 14... Bxf3 {[%clk 0:01:45.7]} 15. Bxf3 {[%clk
0:02:13.3]} 15... Ne5 {[%clk 0:01:45.8]} 16. Be2 {[%clk 0:02:07.9]} 16... dxe4
{[%clk 0:01:46]} 17. dxe4 {[%clk 0:01:55.3]} 17... Nf3+ {[%clk 0:01:39.9]} 18.
Bxf3 {[%clk 0:01:55.4]} 18... Bh2+ {[%clk 0:01:40]} 19. Kxh2 {[%clk 0:01:56.3]}
19... Qxd2 {[%clk 0:01:40.5]} 20. Re2 {[%clk 0:01:57.2]} 20... Qf4+ {[%clk
0:01:36.5]} 21. Kg1 {[%clk 0:01:57.6]} 21... Rad8 {[%clk 0:01:35.3]} 22. Rae1
{[%clk 0:01:55.1]} 22... Rd2 {[%clk 0:01:29.3]} 23. Rxd2 {[%clk 0:01:32.9]}
23... Qxd2 {[%clk 0:01:30.2]} 24. Re2 {[%clk 0:01:33.8]} 24... Qf4 {[%clk
0:01:26.6]} 25. Re3 {[%clk 0:01:27.7]} 25... Rd8 {[%clk 0:01:13.7]} 26. e5
{[%clk 0:01:26.7]} 26... Nd5 {[%clk 0:01:10.6]} 27. Nxd5 {[%clk 0:01:22.7]}
27... cxd5 {[%clk 0:01:11.5]} 28. Rd3 {[%clk 0:01:17.1]} 28... d4 {[%clk
0:01:03.4]} 29. Bxb7 {[%clk 0:01:13.5]} 29... Qxe5 {[%clk 0:01:00.5]} 30. Kf1
{[%clk 0:01:13.6]} 30... Qb5 {[%clk 0:00:55.3]} 0-1

[Event "*** Titled Tuesday Blitz"]
[Site "Chess.com"]
[Date "2021.03.02"]
[Round "5"]
[White "leejunhyeok"]
[Black "stasiek18"]
[Result "0-1"]
[WhiteElo "2569"]
[BlackElo "2413"]
[TimeControl "180+1"]
[EndTime "10:53:19 PST"]
[Termination "stasiek18 won by resignation"]

1. d4 {[%clk 0:02:59.9]} 1... Nf6 {[%clk 0:02:59]} 2. c4 {[%clk 0:03:00]} 2...
g6 {[%clk 0:02:59.4]} 3. Nc3 {[%clk 0:02:58.8]} 3... d5 {[%clk 0:02:59.9]} 4.
cxd5 {[%clk 0:02:52]} 4... Nxd5 {[%clk 0:03:00.8]} 5. e4 {[%clk 0:02:52.7]} 5...
Nxc3 {[%clk 0:03:01.2]} 6. bxc3 {[%clk 0:02:53.6]} 6... Bg7 {[%clk 0:03:01.8]}
7. Nf3 {[%clk 0:02:54.5]} 7... c5 {[%clk 0:03:02.3]} 8. h3 {[%clk 0:02:55]} 8...
Nc6 {[%clk 0:03:00.6]} 9. Be3 {[%clk 0:02:49.3]} 9... Qa5 {[%clk 0:02:58.4]} 10.
Qd2 {[%clk 0:02:44.9]} 10... O-O {[%clk 0:02:57.1]} 11. Rc1 {[%clk 0:02:38.7]}
11... cxd4 {[%clk 0:02:53.3]} 12. cxd4 {[%clk 0:02:39.6]} 12... Qxd2+ {[%clk
0:02:53.9]} 13. Kxd2 {[%clk 0:02:40.5]} 13... Rd8 {[%clk 0:02:50.5]} 14. Rc4
{[%clk 0:02:04.9]} 14... f5 {[%clk 0:02:43.9]} 15. exf5 {[%clk 0:02:00.8]} 15...
gxf5 {[%clk 0:02:38]} 16. Ke1 {[%clk 0:01:18.3]} 16... Be6 {[%clk 0:02:34.3]}
17. Ra4 {[%clk 0:01:17.9]} 17... Rac8 {[%clk 0:02:20.7]} 18. Bb5 {[%clk
0:01:05.4]} 18... a6 {[%clk 0:02:06.1]} 19. Bxc6 {[%clk 0:01:05.4]} 19... Rxc6
{[%clk 0:02:07]} 20. Kd2 {[%clk 0:01:02.9]} 20... Rdc8 {[%clk 0:01:49.5]} 21.
Rd1 {[%clk 0:00:28.7]} 21... Rc2+ {[%clk 0:01:38.5]} 22. Ke1 {[%clk 0:00:28.9]}
22... Bc4 {[%clk 0:01:36.1]} 23. Rc1 {[%clk 0:00:22.9]} 23... Rxc1+ {[%clk
0:01:31.6]} 24. Bxc1 {[%clk 0:00:22.7]} 24... Bb5 {[%clk 0:01:32.5]} 25. Rb4
{[%clk 0:00:18.4]} 25... Rxc1+ {[%clk 0:01:31.9]} 26. Kd2 {[%clk 0:00:18.5]} 0-1

[Event "*** Titled Tuesday Blitz"]
[Site "Chess.com"]
[Date "2021.03.02"]
[Round "5"]
[White "JiiHart"]
[Black "mirochka"]
[Result "0-1"]
[WhiteElo "2075"]
[BlackElo "2242"]
[TimeControl "180+1"]
[EndTime "10:53:24 PST"]
[Termination "mirochka won by checkmate"]

1. e4 {[%clk 0:03:00.9]} 1... c5 {[%clk 0:02:58.7]} 2. Nf3 {[%clk 0:03:00.4]}
2... Nc6 {[%clk 0:02:57.1]} 3. d4 {[%clk 0:03:00.8]} 3... cxd4 {[%clk 0:02:58]}
4. Nxd4 {[%clk 0:03:01.3]} 4... e5 {[%clk 0:02:58.3]} 5. Nb5 {[%clk 0:02:56.1]}
5... d6 {[%clk 0:02:57.7]} 6. N1c3 {[%clk 0:02:55.9]} 6... a6 {[%clk 0:02:57.2]}
7. Na3 {[%clk 0:02:55.9]} 7... b5 {[%clk 0:02:56.7]} 8. Nd5 {[%clk 0:02:56]}
8... Nge7 {[%clk 0:02:56.8]} 9. Bg5 {[%clk 0:02:49.8]} 9... f6 {[%clk 0:02:56]}
10. Qh5+ {[%clk 0:02:26]} 10... g6 {[%clk 0:02:54.3]} 11. Nxf6+ {[%clk
0:02:24.1]} 11... Kf7 {[%clk 0:02:54.9]} 12. Qf3 {[%clk 0:01:44.1]} 12... Nd4
{[%clk 0:02:53.7]} 13. Qd3 {[%clk 0:01:35.4]} 13... h6 {[%clk 0:02:42.1]} 14.
Be3 {[%clk 0:01:29.2]} 14... Bg7 {[%clk 0:02:07.7]} 15. Bxd4 {[%clk 0:01:13.4]}
15... exd4 {[%clk 0:02:06.5]} 16. Nd5 {[%clk 0:01:00]} 16... Nxd5 {[%clk
0:02:05.2]} 17. Qb3 {[%clk 0:00:43.8]} 17... Qa5+ {[%clk 0:01:47.4]} 18. Kd1
{[%clk 0:00:28.9]} 18... Be6 {[%clk 0:01:15.7]} 19. exd5 {[%clk 0:00:28.8]}
19... Bg4+ {[%clk 0:01:13.1]} 20. f3 {[%clk 0:00:28.5]} 20... Rhe8 {[%clk
0:01:10.4]} 21. fxg4 {[%clk 0:00:27.1]} 21... Qe1# {[%clk 0:01:08.3]} 0-1

[Event "*** Titled Tuesday Blitz"]
[Site "Chess.com"]
[Date "2021.03.02"]
[Round "5"]
[White "Kobalia"]
[Black "Savagelittlemole"]
[Result "1-0"]
[WhiteElo "2694"]
[BlackElo "2511"]
[TimeControl "180+1"]
[EndTime "10:53:26 PST"]
[Termination "Kobalia won by checkmate"]

1. e4 {[%clk 0:02:58.8]} 1... c5 {[%clk 0:02:59.2]} 2. Nf3 {[%clk 0:02:58.3]}
2... d6 {[%clk 0:02:59.3]} 3. Bb5+ {[%clk 0:02:57.7]} 3... Nd7 {[%clk
0:02:58.2]} 4. O-O {[%clk 0:02:57.5]} 4... a6 {[%clk 0:02:58.4]} 5. Bd3 {[%clk
0:02:57.7]} 5... Ngf6 {[%clk 0:02:58.5]} 6. c3 {[%clk 0:02:58.1]} 6... g6 {[%clk
0:02:58.8]} 7. Bc2 {[%clk 0:02:57.8]} 7... Bg7 {[%clk 0:02:59.4]} 8. d4 {[%clk
0:02:58]} 8... cxd4 {[%clk 0:02:58.9]} 9. cxd4 {[%clk 0:02:57.6]} 9... O-O
{[%clk 0:02:59.5]} 10. Nc3 {[%clk 0:02:57.7]} 10... b5 {[%clk 0:02:59.7]} 11. h3
{[%clk 0:02:57]} 11... Bb7 {[%clk 0:02:59.8]} 12. Re1 {[%clk 0:02:54.2]} 12...
Rc8 {[%clk 0:02:59.9]} 13. e5 {[%clk 0:02:52.7]} 13... Nd5 {[%clk 0:02:54.6]}
14. e6 {[%clk 0:02:50.4]} 14... fxe6 {[%clk 0:02:52.5]} 15. Ng5 {[%clk
0:02:48.4]} 15... Nxc3 {[%clk 0:02:18.4]} 16. bxc3 {[%clk 0:02:49.3]} 16... Rxc3
{[%clk 0:01:46.2]} 17. Nxe6 {[%clk 0:02:48.1]} 17... Qc8 {[%clk 0:01:31.3]} 18.
Nxf8 {[%clk 0:02:46.9]} 18... Nxf8 {[%clk 0:01:25.8]} 19. Bb3+ {[%clk
0:02:45.7]} 19... Kh8 {[%clk 0:01:26]} 20. Rxe7 {[%clk 0:02:42.4]} 20... Bxg2
{[%clk 0:00:42.6]} 21. Kxg2 {[%clk 0:02:13.5]} 21... Qxh3+ {[%clk 0:00:41.3]}
22. Kg1 {[%clk 0:02:13.7]} 22... Qh4 {[%clk 0:00:33.3]} 23. Re3 {[%clk
0:01:56.2]} 23... Bxd4 {[%clk 0:00:12.3]} 24. Bb2 {[%clk 0:01:55.6]} 24... b4
{[%clk 0:00:12.7]} 25. Bxc3 {[%clk 0:01:50.2]} 25... bxc3 {[%clk 0:00:12.6]} 26.
Rf3 {[%clk 0:01:45.9]} 26... Qg4+ {[%clk 0:00:10.7]} 27. Kf1 {[%clk 0:01:44.7]}
27... Qc8 {[%clk 0:00:06.9]} 28. Qxd4# {[%clk 0:01:43.5]} 1-0

[Event "*** Titled Tuesday Blitz"]
[Site "Chess.com"]
[Date "2021.03.02"]
[Round "5"]
[White "DinaBelenkaya"]
[Black "Trickster_Pony"]
[Result "1-0"]
[WhiteElo "2301"]
[BlackElo "1444"]
[TimeControl "180+1"]
[EndTime "10:53:27 PST"]
[Termination "DinaBelenkaya won by resignation"]

1. e4 {[%clk 0:02:58.8]} 1... c5 {[%clk 0:02:59.3]} 2. Nc3 {[%clk 0:02:57.4]}
2... Nc6 {[%clk 0:02:57.2]} 3. g3 {[%clk 0:02:54.3]} 3... d6 {[%clk 0:02:52.3]}
4. Bg2 {[%clk 0:02:53.8]} 4... g6 {[%clk 0:02:52]} 5. Nge2 {[%clk 0:02:52.8]}
5... Bg7 {[%clk 0:02:52.1]} 6. d3 {[%clk 0:02:51.5]} 6... Nf6 {[%clk 0:02:50.8]}
7. Bg5 {[%clk 0:02:48.4]} 7... Rb8 {[%clk 0:02:46.8]} 8. Qd2 {[%clk 0:02:47.5]}
8... b5 {[%clk 0:02:43.8]} 9. h4 {[%clk 0:02:42.5]} 9... b4 {[%clk 0:02:43.8]}
10. Nd5 {[%clk 0:02:42.8]} 10... Nxd5 {[%clk 0:02:42.8]} 11. exd5 {[%clk
0:02:43.7]} 11... Bxb2 {[%clk 0:02:29.2]} 12. Rb1 {[%clk 0:02:43.8]} 12... Bc3
{[%clk 0:02:26.9]} 13. Nxc3 {[%clk 0:02:28]} 13... bxc3 {[%clk 0:02:27.8]} 14.
Qxc3 {[%clk 0:02:18.3]} 14... Rxb1+ {[%clk 0:02:18.8]} 15. Kd2 {[%clk
0:02:15.8]} 15... Nd4 {[%clk 0:01:39]} 16. Rxb1 {[%clk 0:02:12.9]} 16... Bg4
{[%clk 0:01:32.6]} 17. Bh6 {[%clk 0:02:01.6]} 17... f6 {[%clk 0:00:35.9]} 18.
Qa3 {[%clk 0:01:54.4]} 18... a5 {[%clk 0:00:28.3]} 19. Rb7 {[%clk 0:01:53.3]}
19... Kf7 {[%clk 0:00:18]} 20. Qa4 {[%clk 0:01:43.2]} 20... Bf3 {[%clk
0:00:17.3]} 21. Bh3 {[%clk 0:01:42.4]} 21... Bxd5 {[%clk 0:00:16.6]} 22. Ra7
{[%clk 0:01:34.9]} 22... Nf3+ {[%clk 0:00:16.5]} 23. Ke3 {[%clk 0:01:30.9]}
23... Qc8 {[%clk 0:00:16]} 24. Bxc8 {[%clk 0:01:29.6]} 24... Rxc8 {[%clk
0:00:13.3]} 25. Qd7 {[%clk 0:01:30.1]} 25... Rb8 {[%clk 0:00:12.2]} 26. Qxe7+
{[%clk 0:01:30.1]} 1-0

[Event "*** Titled Tuesday Blitz"]
[Site "Chess.com"]
[Date "2021.03.02"]
[Round "5"]
[White "Konavets"]
[Black "Mr_Sinigami"]
[Result "1-0"]
[WhiteElo "2934"]
[BlackElo "2620"]
[TimeControl "180+1"]
[EndTime "10:53:28 PST"]
[Termination "Konavets won on time"]

1. e4 {[%clk 0:03:00.9]} 1... d5 {[%clk 0:02:59.2]} 2. exd5 {[%clk 0:02:55.9]}
2... Nf6 {[%clk 0:02:59.4]} 3. Nc3 {[%clk 0:02:56.8]} 3... Nxd5 {[%clk
0:02:59.3]} 4. Bc4 {[%clk 0:02:57.1]} 4... Nb6 {[%clk 0:02:58.9]} 5. Bb3 {[%clk
0:02:56.9]} 5... c5 {[%clk 0:02:58.9]} 6. d3 {[%clk 0:02:57.3]} 6... Nc6 {[%clk
0:02:58.3]} 7. Qh5 {[%clk 0:02:57.7]} 7... e6 {[%clk 0:02:53.2]} 8. Nf3 {[%clk
0:02:57.8]} 8... Be7 {[%clk 0:02:37.8]} 9. Ne4 {[%clk 0:02:54.4]} 9... Nd5
{[%clk 0:02:28.4]} 10. O-O {[%clk 0:02:49.7]} 10... O-O {[%clk 0:02:18.5]} 11.
Nfg5 {[%clk 0:02:48.3]} 11... h6 {[%clk 0:02:15.9]} 12. Nf3 {[%clk 0:02:48.3]}
12... Nf6 {[%clk 0:02:13.1]} 13. Nxf6+ {[%clk 0:02:46.7]} 13... Bxf6 {[%clk
0:02:12]} 14. Qxc5 {[%clk 0:02:46.8]} 14... Bd7 {[%clk 0:01:58.7]} 15. Qd6
{[%clk 0:02:46.4]} 15... Qc8 {[%clk 0:01:34.3]} 16. Qg3 {[%clk 0:02:44.7]} 16...
Ne7 {[%clk 0:01:25.7]} 17. Re1 {[%clk 0:02:40.3]} 17... Nf5 {[%clk 0:01:22.6]}
18. Qf4 {[%clk 0:02:39.8]} 18... Bc6 {[%clk 0:01:18.4]} 19. Ne5 {[%clk
0:02:39.5]} 19... Rd8 {[%clk 0:01:10]} 20. Nxc6 {[%clk 0:02:33.2]} 20... Qxc6
{[%clk 0:01:09.6]} 21. Rxe6 {[%clk 0:02:33.3]} 21... fxe6 {[%clk 0:01:07.9]} 22.
Qxf5 {[%clk 0:02:33.7]} 22... Kh8 {[%clk 0:00:53.6]} 23. Qh3 {[%clk 0:02:29.3]}
23... Rd4 {[%clk 0:00:45.1]} 24. g3 {[%clk 0:02:22.3]} 24... e5 {[%clk
0:00:29.9]} 25. Bxh6 {[%clk 0:02:19.8]} 25... Rh4 {[%clk 0:00:27.7]} 26. Bxg7+
{[%clk 0:02:10.5]} 26... Kxg7 {[%clk 0:00:24.2]} 27. gxh4 {[%clk 0:02:07.6]}
27... Rh8 {[%clk 0:00:24.2]} 28. h5 {[%clk 0:02:07.2]} 28... Kf8 {[%clk
0:00:21.8]} 29. Re1 {[%clk 0:02:05.7]} 29... Rh7 {[%clk 0:00:20.5]} 30. Re4
{[%clk 0:02:02.3]} 30... Rg7+ {[%clk 0:00:19.2]} 31. Rg4 {[%clk 0:02:02.4]}
31... Rxg4+ {[%clk 0:00:18.8]} 32. Qxg4 {[%clk 0:02:03.3]} 32... Qd6 {[%clk
0:00:17.5]} 33. h6 {[%clk 0:02:01]} 33... Qd7 {[%clk 0:00:01.5]} 34. Qxd7 {[%clk
0:02:00.1]} 1-0

[Event "*** Titled Tuesday Blitz"]
[Site "Chess.com"]
[Date "2021.03.02"]
[Round "5"]
[White "turayev_shahruh17"]
[Black "Zemerovv"]
[Result "0-1"]
[WhiteElo "2477"]
[BlackElo "2294"]
[TimeControl "180+1"]
[EndTime "10:53:32 PST"]
[Termination "Zemerovv won by checkmate"]

1. e4 {[%clk 0:03:00.9]} 1... g6 {[%clk 0:02:59.4]} 2. d4 {[%clk 0:03:00.2]}
2... Bg7 {[%clk 0:03:00.3]} 3. Nc3 {[%clk 0:03:00.2]} 3... d6 {[%clk 0:03:00.2]}
4. f4 {[%clk 0:03:00.3]} 4... a6 {[%clk 0:03:00.3]} 5. Nf3 {[%clk 0:02:57.9]}
5... b5 {[%clk 0:03:00.2]} 6. Bd3 {[%clk 0:02:56.3]} 6... Nd7 {[%clk 0:02:59.6]}
7. O-O {[%clk 0:02:55.9]} 7... c5 {[%clk 0:02:59.4]} 8. Be3 {[%clk 0:02:42.5]}
8... Bb7 {[%clk 0:02:56.3]} 9. e5 {[%clk 0:02:38.9]} 9... Nh6 {[%clk 0:02:52.8]}
10. d5 {[%clk 0:02:26.9]} 10... b4 {[%clk 0:02:41.6]} 11. Ne4 {[%clk 0:02:24.3]}
11... Nf5 {[%clk 0:02:37.8]} 12. Bf2 {[%clk 0:02:21.7]} 12... Bxd5 {[%clk
0:02:34.5]} 13. exd6 {[%clk 0:02:14]} 13... O-O {[%clk 0:02:24.4]} 14. dxe7
{[%clk 0:02:09.5]} 14... Qxe7 {[%clk 0:02:20.7]} 15. Re1 {[%clk 0:02:06.5]}
15... Bxb2 {[%clk 0:02:12.5]} 16. Nxc5 {[%clk 0:01:42.5]} 16... Qd6 {[%clk
0:02:05.7]} 17. Nxd7 {[%clk 0:01:34.8]} 17... Bxa1 {[%clk 0:01:57.2]} 18. Qxa1
{[%clk 0:01:29.2]} 18... Qxd7 {[%clk 0:01:55.4]} 19. Ne5 {[%clk 0:01:28.3]}
19... Qd8 {[%clk 0:01:46.5]} 20. Ng4 {[%clk 0:01:25.9]} 20... f6 {[%clk
0:01:46.3]} 21. Bc5 {[%clk 0:01:03.6]} 21... Qc7 {[%clk 0:01:16.5]} 22. Bxf8
{[%clk 0:00:57.8]} 22... Qb6+ {[%clk 0:01:15.8]} 23. Kh1 {[%clk 0:00:54.5]}
23... Rxf8 {[%clk 0:01:14.4]} 24. Bxf5 {[%clk 0:00:50.5]} 24... gxf5 {[%clk
0:01:13.5]} 25. Nh6+ {[%clk 0:00:50.4]} 25... Kh8 {[%clk 0:01:12]} 26. Nxf5
{[%clk 0:00:49.7]} 26... Qf2 {[%clk 0:01:07.3]} 27. Re8 {[%clk 0:00:42.5]} 27...
Qxg2# {[%clk 0:01:04.6]} 0-1

[Event "*** Titled Tuesday Blitz"]
[Site "Chess.com"]
[Date "2021.03.02"]
[Round "5"]
[White "baki83"]
[Black "Mikhail_Golubev"]
[Result "1-0"]
[WhiteElo "2813"]
[BlackElo "2589"]
[TimeControl "180+1"]
[EndTime "10:53:34 PST"]
[Termination "baki83 won by resignation"]

1. e4 {[%clk 0:03:00.9]} 1... c5 {[%clk 0:02:58.7]} 2. Nf3 {[%clk 0:03:00.7]}
2... d6 {[%clk 0:02:58.8]} 3. c3 {[%clk 0:03:00.7]} 3... Nf6 {[%clk 0:02:58]} 4.
Bd3 {[%clk 0:03:00.8]} 4... Bg4 {[%clk 0:02:42.6]} 5. h3 {[%clk 0:03:00.4]} 5...
Bxf3 {[%clk 0:02:41.9]} 6. Qxf3 {[%clk 0:03:00.4]} 6... Nc6 {[%clk 0:02:41.9]}
7. Bc2 {[%clk 0:02:59.5]} 7... g6 {[%clk 0:02:40.5]} 8. d3 {[%clk 0:02:56.7]}
8... Bg7 {[%clk 0:02:40.2]} 9. Nd2 {[%clk 0:02:56.9]} 9... O-O {[%clk
0:02:40.7]} 10. Qe2 {[%clk 0:02:57.1]} 10... b5 {[%clk 0:02:35.5]} 11. Nf3
{[%clk 0:02:55.5]} 11... b4 {[%clk 0:02:28.4]} 12. O-O {[%clk 0:02:55.4]} 12...
Nd7 {[%clk 0:02:24.6]} 13. Bd2 {[%clk 0:02:51.8]} 13... bxc3 {[%clk 0:02:20.7]}
14. bxc3 {[%clk 0:02:52.7]} 14... Rb8 {[%clk 0:02:17.3]} 15. Bb3 {[%clk
0:02:40]} 15... Qa5 {[%clk 0:01:59.2]} 16. Rac1 {[%clk 0:02:29.2]} 16... e6
{[%clk 0:01:34.7]} 17. d4 {[%clk 0:02:28.6]} 17... cxd4 {[%clk 0:01:25.7]} 18.
cxd4 {[%clk 0:02:29.5]} 18... Qb6 {[%clk 0:01:25.4]} 19. Ba4 {[%clk 0:02:17.4]}
19... Rfc8 {[%clk 0:01:24.9]} 20. Be3 {[%clk 0:02:10.2]} 20... d5 {[%clk
0:01:17.7]} 21. Bf4 {[%clk 0:01:55.2]} 21... Ra8 {[%clk 0:01:09]} 22. exd5
{[%clk 0:01:55.2]} 22... exd5 {[%clk 0:01:09.2]} 23. Qb5 {[%clk 0:01:53]} 23...
Nxd4 {[%clk 0:00:40.6]} 24. Nxd4 {[%clk 0:01:47]} 24... Rxc1 {[%clk 0:00:08.3]}
25. Bxc1 {[%clk 0:01:42]} 25... Bxd4 {[%clk 0:00:07.8]} 26. Qxd7 {[%clk
0:01:41.1]} 26... Rd8 {[%clk 0:00:06.9]} 27. Qb5 {[%clk 0:01:40.2]} 27... Qf6
{[%clk 0:00:06.7]} 28. Be3 {[%clk 0:01:34.4]} 1-0

[Event "*** Titled Tuesday Blitz"]
[Site "Chess.com"]
[Date "2021.03.02"]
[Round "5"]
[White "Bayernbk"]
[Black "Chopper1905"]
[Result "0-1"]
[WhiteElo "2542"]
[BlackElo "2937"]
[TimeControl "180+1"]
[EndTime "10:53:35 PST"]
[Termination "Chopper1905 won by resignation"]

1. e4 {[%clk 0:03:00.9]} 1... e5 {[%clk 0:02:56.7]} 2. Nc3 {[%clk 0:03:00.9]}
2... Nf6 {[%clk 0:02:56.1]} 3. Nf3 {[%clk 0:03:01.2]} 3... d6 {[%clk 0:02:54]}
4. d4 {[%clk 0:03:00.7]} 4... exd4 {[%clk 0:02:54.1]} 5. Nxd4 {[%clk 0:03:01.4]}
5... g6 {[%clk 0:02:54.5]} 6. g3 {[%clk 0:03:01.4]} 6... Bg7 {[%clk 0:02:54.9]}
7. Bg2 {[%clk 0:03:02.1]} 7... O-O {[%clk 0:02:55.2]} 8. O-O {[%clk 0:03:02.8]}
8... Re8 {[%clk 0:02:55.9]} 9. Re1 {[%clk 0:03:02.3]} 9... Nbd7 {[%clk
0:02:54.6]} 10. f4 {[%clk 0:03:01.3]} 10... c6 {[%clk 0:02:49.6]} 11. a4 {[%clk
0:02:52.9]} 11... a5 {[%clk 0:02:48.9]} 12. h3 {[%clk 0:02:52.1]} 12... Nc5
{[%clk 0:02:40.5]} 13. Kh2 {[%clk 0:02:46.5]} 13... h5 {[%clk 0:02:37]} 14. e5
{[%clk 0:02:32]} 14... dxe5 {[%clk 0:02:31.1]} 15. fxe5 {[%clk 0:02:30.3]} 15...
Nh7 {[%clk 0:02:18.2]} 16. Nxc6 {[%clk 0:02:10.3]} 16... bxc6 {[%clk 0:02:12.1]}
17. Bxc6 {[%clk 0:02:09.7]} 17... Bb7 {[%clk 0:01:57.1]} 18. Bxe8 {[%clk
0:01:59.6]} 18... Qxe8 {[%clk 0:01:58]} 19. Nd5 {[%clk 0:01:50.2]} 19... h4
{[%clk 0:01:49.8]} 20. Bf4 {[%clk 0:01:14.4]} 20... g5 {[%clk 0:01:44.3]} 21.
Nf6+ {[%clk 0:00:56.9]} 21... Nxf6 {[%clk 0:01:17]} 22. exf6 {[%clk 0:00:55.2]}
22... Qc6 {[%clk 0:01:17.5]} 23. Qe2 {[%clk 0:00:21.3]} 23... gxf4 {[%clk
0:01:14.8]} 24. fxg7 {[%clk 0:00:21.2]} 24... fxg3+ {[%clk 0:01:14]} 0-1